[Event "ITT 1st Parada Jamundi 2022"]
[Site "Jamundi Valle"]
[Date "2022.12.07"]
[Round "3.3"]
[White "Campos Gomez, Manuel"]
[Black "Herrera, Juan Sebastian"]
[Result "1/2-1/2"]
[ECO "E68"]
[WhiteElo "2322"]
[BlackElo "2297"]
[Annotator "TA"]
[PlyCount "72"]
[EventDate "2022.12.05"]
[EventType "swiss"]
[EventCountry "COL"]
[SourceTitle "playchess.com"]
[Source "ChessBase"]
[SourceQuality "1"]
[TimeControl "5400+30"]

{[%evp 18,72,34,17,52,57,55,42,83,72,59,38,43,44,31,33,58,28,45,1,33,0,18,16,56,-1,0,-9,-19,-16,0,0,0,0,68,52,84,0,0,0,0,0,0,0,0,-253,-235,-317,-229,-229,-235,-232,0,0,0,-246,0]} 1. Nf3 {[%emt 0:06:01]} Nf6 {[%emt 0:01:23]} 2. g3 {[%emt 0:00:05]} g6 {[%emt 0:00:05]} 3. Bg2 {[%emt 0:00:04]} Bg7 {[%emt 0:00:04]} 4. O-O {[%emt 0:00:06]} O-O {[%emt 0:00:06]} 5. c4 {[%emt 0:00:04]} d6 {[%emt 0:00:31]} 6. d4 {[%emt 0:01:01]} Nbd7 {[%emt 0:00:07]} 7. Nc3 {[%emt 0:00:11]} e5 {[%emt 0:03:57]} 8. e4 {[%emt 0:01:05]} a6 {[%emt 0:00:48]} 9. Re1 {[%emt 0:01:52]} exd4 {[%emt 0:00:18]} 10. Nxd4 {[%emt 0:00:09][%cal Bf3d4,Bd4c2,Bc2e3][%mdl 32]} (10. Qxd4 Re8 $11) 10... Ne5 {[%emt 0:00:04] E68: King's Indian: Fianchetto: 6...Nbd7 7 0-0 e5 8 e4.} 11. b3 {[%emt 0:01:29]} c5 {[%emt 0:00:07] Against f4} 12. Nc2 {[%emt 0:01:23]} Nc6 {[%emt 0:00:22] White is slightly better.} 13. Bb2 {[%emt 0:03:00] [#]} Rb8 $146 {[%emt 0:00:27]} ({Predecessor:} 13... Ne8 14. Na4 Bxb2 15. Nxb2 Nc7 16. Na4 Ne6 17. Nc3 Ned4 18. Nxd4 Nxd4 19. Re3 Qf6 {1-0 (45) Olarasu,G (2311)-Srebrnic,M (2225) Nova Gorica 2004}) 14. Qd2 {[%emt 0:19:14]} b5 {[%emt 0:01:55]} 15. cxb5 {[%emt 0:00:39]} axb5 {[%emt 0:00:03]} 16. Rad1 {[%emt 0:00:27] And now e5 would win.} Ne8 {[%emt 0:03:05]} 17. Ne3 {[%emt 0:00:10]} Qa5 {[%emt 0:02:57]} 18. h4 {[%emt 0:05:08]} h5 {[%emt 0:03:54]} 19. Kh1 {[%emt 0:04:09]} Bd7 {[%emt 0:06:15]} 20. f4 {[%emt 0:14:53][%cal Oe4e5]} b4 {[%emt 0:11:11]} 21. Na4 {[%emt 0:01:02]} (21. Ncd5 $14) 21... Nd4 {[%emt 0:01:08]} 22. e5 {[%emt 0:03:48]} Bxa4 {[%emt 0:10:39]} (22... dxe5 23. Nc4 Qa7 24. Nxc5 $1 $16 {[%mdl 512]}) 23. bxa4 Qxa4 {[%emt 0:00:18]} (23... dxe5 {simplifies} 24. fxe5 Nc7 25. Bxd4 cxd4 26. Qxd4 Qxe5 27. Qxe5 Bxe5 28. Kh2 b3) 24. Bxd4 cxd4 {[%emt 0:00:05]} 25. Nd5 {[%emt 0:04:50] Threatens to win with f5.} b3 {[%emt 0:01:29] Prevents f5.} ({Much less strong is} 25... dxe5 26. fxe5 Kh7 27. Qxd4 Qxa2 28. Nxb4 $14) (25... Qa3 $11) 26. axb3 $1 $14 {[%emt 0:01:55] White has more active pieces. The black rooks are badly placed.} (26. Qxd4 $2 {loses.} Qxd4 27. Rxd4 dxe5 28. fxe5 bxa2 $19) 26... Rxb3 {[%emt 0:00:12]} 27. Kh2 {[%emt 0:01:30]} ({Much weaker is} 27. Qxd4 Qxd4 28. Rxd4 Rxg3 $15) (27. e6 $16 fxe6 {[#]} 28. Qc2 $1) 27... dxe5 $11 {[%emt 0:13:17]} 28. fxe5 {[%emt 0:01:11]} Kh7 {[%emt 0:12:50]} 29. Qxd4 {[%emt 0:29:34]} Qxd4 30. Rxd4 {[%emt 0:00:30]} Nd6 {Against Rc4} 31. exd6 $2 {[%emt 0:00:30][%mdl 8192]} Bxd4 $19 {[%emt 0:28:23]} 32. d7 Rd8 {[%emt 0:00:30][%cal Od4f2] ...Bf2! is the strong threat.} 33. Re7 {[%emt 0:01:00]} Kg7 {[%emt 0:00:30]} 34. Nc7 Kf6 {[%emt 0:00:30] Prevents Ne6.} 35. Nd5+ {[%emt 0:01:00]} Kg7 36. Nc7 $1 Kf6 $2 {[%emt 0:01:00] Weighted Error Value: White=0.31/Black=0.35} ({Black should play} 36... Bf2 $19 37. Bd5 Bxg3+ 38. Kg2 Rd3 39. Rxf7+ Kh6) 1/2-1/2

[Event "ITT 1st Parada Jamundi 2022"]
[Site "Jamundi Valle"]
[Date "2022.12.07"]
[Round "3.4"]
[White "Cori Quispe, Kevin Joel"]
[Black "Avila Pavas, Santiago"]
[Result "0-1"]
[ECO "B76"]
[WhiteElo "2469"]
[BlackElo "2461"]
[Annotator "TA"]
[PlyCount "96"]
[EventDate "2022.12.05"]
[EventType "swiss"]
[EventCountry "COL"]
[SourceTitle "playchess.com"]
[Source "ChessBase"]
[SourceQuality "1"]
[TimeControl "5400+30"]

{[%evp 21,96,115,135,122,133,133,191,0,0,0,-13,-33,-33,-288,-287,-350,-370,-369,-323,-295,-294,-339,-212,-220,-197,-241,-240,-243,-244,-229,-205,-236,-217,-204,-219,-277,-246,-237,-235,-332,-322,-420,-377,-388,-342,-433,-410,-412,-403,-553,-562,-522,-506,-640,-603,-627,-620,-755,-741,-742,-721,-815,-802,-653,-700,-897,-887,-900,-715,-932,-920,-917,-910,-902,-866,-875,-862]} 1. e4 {[%emt 1:31:00]} c5 {[%emt 0:02:27]} 2. Nf3 {[%emt 0:00:00]} g6 {[%emt 0:00:08]} 3. d4 {[%emt 0:00:00]} cxd4 {[%emt 0:00:15]} 4. Nxd4 {[%emt 0:00:00]} Nf6 {[%emt 0:00:15]} 5. Nc3 {[%emt 0:00:00]} d6 {[%emt 0:00:07]} 6. Be3 {[%emt 0:00:00]} Bg7 {[%emt 0:00:09]} 7. f3 {[%emt 0:00:00]} Nc6 {[%emt 0:00:08]} 8. Qd2 {[%emt 0:00:00]} O-O {[%emt 0:00:09]} 9. g4 {[%emt 0:00:00]} Bxg4 {[%emt 0:00:19]} 10. fxg4 {[%emt 0:00:00]} Nxg4 {[%emt 0:00:16]} 11. Nb3 {[%emt 0:00:00]} a5 {[%emt 0:00:17] aiming for ...a4.} 12. a4 {[%emt 0:00:00] B76: Sicilian Dragon: Yugoslav Attack, 9 g4 and 9 0-0-0.} d5 {[%emt 0:02:52]} 13. exd5 {[%emt 0:00:00]} ({But not} 13. Nxd5 $6 e6 14. Bg5 f6 $11) 13... Nb4 {[%emt 0:00:09] [#]} (13... Bxc3 $16 {keeps fighting.} 14. bxc3 (14. Qxc3 $2 {loses.} Nb4 $19) 14... Nxe3) 14. O-O-O $2 {[%emt 0:00:00]} ({White must play} 14. Bg5 $1 $18) 14... Rc8 $1 $11 {[%emt 0:01:48][%cal Oc8c3] [#] Threatens to win with ...Rxc3!} 15. Bh3 $146 {[%emt 0:00:00]} ({Predecessor:} 15. Kb1 Nxe3 16. Qxe3 Bxc3 17. bxc3 Nxd5 18. Rxd5 Qxd5 19. Rg1 Qc6 20. Bb5 Qxc3 21. Qxc3 Rxc3 22. Nxa5 {½-½ (44) Martins,C (2221)-Santos,M (2309) Rio de Janeiro 2013}) 15... Rxc3 {[%emt 0:11:22][%mdl 64] Remove Defender} 16. bxc3 {[%emt 0:00:00]} Na2+ {[%emt 0:00:15] Pair of Knights!} 17. Kb2 $2 {[%emt 0:00:00][%mdl 8192] Now White is beyond hope.} ({White has to play} 17. Kb1 $15 Nxc3+ 18. Kc1) 17... Bxc3+ $19 {[%emt 0:00:28]} 18. Qxc3 {[%emt 0:00:00]} Nxc3 {[%emt 0:00:13] The board is on fire.} 19. Bxg4 {[%emt 0:00:00]} Nxd1+ {[%emt 0:03:51]} 20. Rxd1 {[%emt 0:00:00]} Qd6 {[%emt 0:00:25]} 21. Rd2 {[%emt 0:00:00]} Qe5+ {[%emt 0:02:41]} 22. Bd4 {[%emt 0:00:00]} Qxd5 {[%emt 0:00:05] ...Qc6 is the strong threat.} 23. Bc3 {[%emt 0:00:00]} Qc6 {[%emt 0:03:44]} 24. Bd7 {[%emt 0:00:00]} Qc7 {[%emt 0:00:01] Hoping for ...Rd8.} 25. Bb5 {[%emt 0:00:00]} b6 {[%emt 0:01:35]} 26. Re2 {[%emt 0:00:36]} Rc8 {[%emt 0:06:14]} 27. Be5 {[%emt 0:01:29]} Qb7 {[%emt 0:00:01]} 28. Nd2 {[%emt 0:00:55]} Qd5 {[%emt 0:06:08]} 29. Bc3 {[%emt 0:00:51]} Kf8 {[%emt 0:00:09]} 30. Re3 {[%emt 0:01:16]} (30. Nb3 $142) 30... Rc5 {[%emt 0:07:47]} 31. Be2 {[%emt 0:06:06]} Qg2 {[%emt 0:05:46]} 32. Nf3 {[%emt 0:01:46]} Qg4 {[%emt 0:02:36]} 33. Rd3 {[%emt 0:00:32][%cal Rd3d8] [#]} Rxc3 $1 {[%emt 0:02:14]} 34. Rxc3 {[%emt 0:00:02]} Qxa4 {[%emt 0:00:01] Strongly threatening ...Qb4+.} 35. Rb3 {[%emt 0:00:08]} Qe4 {[%emt 0:00:11] Black is clearly winning.} 36. Bd1 {[%emt 0:00:32]} g5 {[%emt 0:01:19][%cal Bg6g5,Bg5g4][%mdl 32]} 37. Rd3 {[%emt 0:00:35]} g4 {[%emt 0:02:03]} 38. Nd2 {[%emt 0:02:08]} Qe5+ {[%emt 0:00:09]} 39. Kb3 {[%emt 0:00:04]} h5 {[%emt 0:00:11]} 40. Nf1 {[%emt 0:00:55]} f5 {[%emt 0:03:49][%cal Bf7f5,Bf5f4][%mdl 32]} 41. h3 {[%emt 0:00:04]} Qe6+ {[%emt 0:00:34]} 42. Kb2 {[%emt 0:00:15]} Qe1 {[%emt 0:02:14]} 43. Ne3 {[%emt 0:00:46]} f4 {[%emt 0:01:26]} 44. Nd5 {[%emt 0:00:17]} Qe5+ {[%emt 0:00:11]} 45. Kc1 {[%emt 0:00:19]} g3 {[%emt 0:02:11]} 46. Bf3 {[%emt 0:00:34]} Qe1+ {[%emt 0:00:35]} 47. Kb2 {[%emt 0:00:42]} e6 {[%emt 0:01:08]} 48. Nc3 {[%emt 0:00:09]} Qf1 {[%emt 0:01:18] Weighted Error Value: White=0.62/Black=0.19 (very precise)} 0-1

[Event "ITT 1st Parada Jamundi 2022"]
[Site "Jamundi Valle"]
[Date "2022.12.07"]
[Round "3.5"]
[White "Zuluaga Mancilla, Cesar"]
[Black "Delgado Ramirez, Neuris"]
[Result "0-1"]
[ECO "D30"]
[WhiteElo "2230"]
[BlackElo "2572"]
[Annotator "TA"]
[PlyCount "64"]
[EventDate "2022.12.05"]
[EventType "swiss"]
[EventCountry "COL"]
[SourceTitle "playchess.com"]
[Source "ChessBase"]
[SourceQuality "1"]
[TimeControl "5400+30"]

{[%evp 9,64,11,12,0,5,-3,2,-27,0,-19,0,-14,-3,-21,-4,-9,-18,-50,-36,-32,-28,-44,-36,-41,-14,-33,-10,-5,0,-16,4,-40,-44,-63,-58,-176,-164,-309,-308,-295,-289,-323,-313,-470,-474,-480,-495,-551,-546,-519,-518,-520,-510,-511,-511,-29991,-29992]} 1. d4 {[%emt 0:07:31]} Nf6 {[%emt 0:00:29]} 2. Nf3 {[%emt 0:00:20]} e6 {[%emt 0:00:36]} 3. c4 {[%emt 0:00:08]} d5 {[%emt 0:00:27]} 4. e3 {[%emt 0:00:28]} a6 {[%emt 0:00:26]} 5. Nbd2 {[%emt 0:02:56]} c5 {[%emt 0:01:17]} 6. cxd5 {[%emt 0:04:48] D30: Queen's Gambit Declined: Systems without Nc3.} exd5 {[%emt 0:00:50]} 7. dxc5 {[%emt 0:00:40]} Bxc5 {[%emt 0:00:13][%cal Bf8c5,Bc5b6,Bb6c7][%mdl 32]} 8. Nb3 {[%emt 0:00:05] The position is equal.} Bb6 {[%emt 0:00:31]} 9. Be2 {[%emt 0:02:26]} O-O {[%emt 0:00:17]} 10. O-O {[%emt 0:00:28]} Nc6 {[%emt 0:00:16]} 11. Bd2 {[%emt 0:01:03] [#]} Re8 $146 {[%emt 0:00:11]} (11... Bc7 {with more complications.} 12. Bc3 Ne4 13. Rc1 Qd6) ({Predecessor:} 11... Ne4 12. Bc3 Nxc3 13. bxc3 Bf5 14. Bd3 Bg4 15. Rb1 Rc8 16. Nbd4 Ne5 17. Be2 Nxf3+ 18. Bxf3 Bxf3 19. Qxf3 Bxd4 20. cxd4 {0-1 (54) Buhmann,R (2617)-Socko,B (2636) Austria 2012}) 12. Bc3 {[%emt 0:00:16]} Ne4 {[%emt 0:00:06]} 13. Bd4 {[%emt 0:01:21]} (13. Rc1 {simplifies} Qd6 14. Nbd2 Qh6 15. Nxe4 dxe4 16. Nd2) 13... Bc7 {[%emt 0:00:08]} 14. Rc1 {[%emt 0:03:29]} Qd6 {[%emt 0:02:59]} (14... a5 {simplifies} 15. Nc5 Nxd4 16. exd4 Nxc5 17. dxc5 Bd7) 15. g3 {[%emt 0:07:42]} Bh3 {[%emt 0:00:53]} 16. Re1 {[%emt 0:00:01]} Rad8 {[%emt 0:00:14]} 17. Nc5 {[%emt 0:07:35]} Bc8 {[%emt 0:01:35]} 18. a3 {[%emt 0:02:44]} Qh6 {[%emt 0:03:34]} 19. Qc2 {[%emt 0:08:18]} Bb8 {[%emt 0:03:13]} (19... Nxf2 $2 20. Kxf2 Bg4 21. Kg1 $18 (21. Nxb7 Rc8 $14)) (19... Re7 $5 {[%cal Rc6d4]}) 20. Bf1 {[%emt 0:03:57]} (20. Bd3 {simplifies} Nxc5 21. Bxc5 Bg4 22. Nh4) 20... Bg4 {[%emt 0:03:59]} 21. Bg2 {[%emt 0:04:43]} Rc8 {[%emt 0:00:35] White must now prevent ...b6. Black is more active.} 22. Qb3 {[%emt 0:19:21] [#] Against b6} (22. Qd3 $15) 22... Nxf2 $1 $19 {[%emt 0:13:27] And now ...Nh3+ would win.} ({And not} 22... Nxd4 23. exd4 b6 24. Nd3 $11) 23. Qxd5 {[%emt 0:08:39] [#]} (23. Nd3 $142 Nxd3 24. Qxd3) 23... Nh3+ $1 24. Bxh3 {[%emt 0:06:47]} Qxh3 {[%emt 0:05:26]} 25. Ng5 {[%emt 0:05:51]} Qh5 {[%emt 0:00:10] ...Ne5 is the strong threat. Chess con chili.} 26. Nxb7 {[%emt 0:00:14]} (26. Qxf7+ $142 Qxf7 27. Nxf7) 26... Be6 {[%emt 0:03:06][%cal Bg4e6,Be6d5,Bd5b7][%mdl 96] Deflection} 27. Qf3 {[%emt 0:00:59]} Qxg5 {[%emt 0:00:24]} 28. Rxc6 {[%emt 0:00:13]} Bd5 {[%emt 0:00:20]} 29. Rxc8 {[%emt 0:00:53]} Rxc8 {[%emt 0:00:07][%mdl 64]} (29... Bxf3 $2 30. Rxe8#) 30. e4 {[%emt 0:00:53]} Bxb7 {[%emt 0:00:05]} 31. Qb3 {[%emt 0:00:27]} Qd2 {[%emt 0:02:41] ( -> ...Bxe4)} 32. Bf2 {[%emt 0:00:22] [#]} (32. Qb4 $19 Qxb4 33. axb4) 32... Ba7 $1 {[%emt 0:01:11][%mdl 512] Weighted Error Value: White=0.52/Black=0.05 (flawless)} 0-1

[Event "ITT 1st Parada Jamundi 2022"]
[Site "Jamundi Valle"]
[Date "2022.12.07"]
[Round "3.6"]
[White "Arango Arenas, Juan Camilo"]
[Black "Larino Nieto, David"]
[Result "1/2-1/2"]
[ECO "B06"]
[WhiteElo "2202"]
[BlackElo "2466"]
[Annotator "TA"]
[PlyCount "71"]
[EventDate "2022.12.05"]
[EventType "swiss"]
[EventCountry "COL"]
[SourceTitle "playchess.com"]
[Source "ChessBase"]
[SourceQuality "1"]
[TimeControl "5400+30"]

{[%evp 9,71,60,65,46,50,51,97,57,84,79,214,209,210,191,195,137,195,204,207,196,202,162,174,130,193,180,209,208,186,186,210,208,283,281,370,361,270,282,751,776,986,963,1131,1097,2266,725,29991,29992,29994,29988,29988,29989,29989,29990,29990,29977,3098,1473,1325,0,2138,0,1189,0]} 1. e4 {[%emt 0:04:04]} c6 {[%emt 0:16:59]} 2. d4 {[%emt 0:00:59]} g6 {[%emt 0:00:21]} 3. h4 {[%emt 0:02:55] [#]} h6 $146 {[%emt 0:02:43]} ({Predecessor:} 3... d5 4. e5 h5 5. Bd3 Nh6 6. Ne2 c5 7. dxc5 Nc6 8. Nbc3 Ng4 9. Bb5 e6 10. Bg5 Qc7 11. Bxc6+ bxc6 12. Qd4 {½-½ (50) Bachmann,A (2599)-Larino Nieto,D (2461) chess24.com INT 2020}) 4. h5 {[%emt 0:02:33]} g5 {[%emt 0:15:28]} 5. f4 {[%emt 0:00:38]} gxf4 {[%emt 0:00:44]} 6. Bxf4 {[%emt 0:00:24] B06: Modern Defence.} d6 {[%emt 0:00:01]} 7. Nc3 {[%emt 0:01:46]} Bg7 {[%emt 0:03:02]} (7... Qb6 $14 {deserves consideration.}) 8. Qd2 {[%emt 0:02:47] White is better.} b5 {[%emt 0:05:23]} 9. Nf3 {[%emt 0:01:25] White is more active.} Nd7 {[%emt 0:00:32]} (9... Nf6 $16 {might work better.}) 10. e5 $18 {[%emt 0:04:29]} b4 {[%emt 0:01:13] [#] ...dxe5 is the strong threat.} 11. Ne4 {[%emt 0:02:27]} d5 {[%emt 0:01:13]} 12. Ng3 {[%emt 0:02:25]} (12. Nc5 $18) 12... a5 {[%emt 0:04:20]} (12... e6 $16 {is a better defense.}) 13. e6 {[%emt 0:02:15]} fxe6 {[%emt 0:01:37]} 14. Bd3 {[%emt 0:00:43] Hoping for Bg6+.} Qb6 {[%emt 0:00:04]} 15. Bg6+ {[%emt 0:15:07]} Kd8 {[%emt 0:02:24]} 16. Ne5 {[%emt 0:12:06]} Nxe5 {[%emt 0:01:44]} (16... Bxe5 $16 17. dxe5 c5) 17. dxe5 {[%emt 0:00:07]} a4 {[%emt 0:00:16]} 18. Ne2 {[%emt 0:17:08][%mdl 1024] White has strong compensation.} Ba6 {[%emt 0:04:16]} 19. Rh3 {[%emt 0:02:40]} Kd7 {[%emt 0:01:04]} 20. O-O-O {[%emt 0:09:36]} Rf8 {[%emt 0:01:22] Threatens to win with ...Bxe2.} 21. Rf3 {[%emt 0:04:53]} c5 {[%emt 0:01:34]} 22. Bh2 {[%emt 0:01:50]} Rxf3 {[%emt 0:02:46]} 23. gxf3 {[%emt 0:00:02] aiming for Bf7. Dancing on a razor blade.} Qb5 $2 {[%emt 0:00:21]} (23... d4 24. Bf7 b3 25. axb3 axb3 26. cxb3 Bb7) 24. Nf4 {[%emt 0:01:43][%cal Of4d5] Black must now prevent Nxd5!} Qc4 {[%emt 0:01:31]} 25. Bf7 {[%emt 0:01:34]} Qxa2 {[%emt 0:02:12]} 26. Bxe6+ {[%emt 0:00:15]} Kc7 {[%emt 0:00:06]} 27. Qxd5 {[%emt 0:02:25]} (27. Nxd5+ $142 Kb7 28. Qe3) 27... Qa1+ {[%emt 0:00:24]} 28. Kd2 {[%emt 0:00:07]} Qxb2 {[%emt 0:00:04]} 29. Qd7+ {[%emt 0:02:48]} (29. Bxg8 Qc3+ 30. Kc1 Qa1+ 31. Kd2 Qc3+ 32. Kc1 Qa1+ 33. Kd2 Qc3+ $11) 29... Kb8 {[%emt 0:00:17]} 30. Qd8+ {[%emt 0:00:06]} Ka7 {[%emt 0:00:16]} 31. Qc7+ {[%emt 0:00:08]} ({Not} 31. Bxg8 Qxe5 32. Qd7+ Kb8 33. Qe8+ Kb7 34. Qd7+ Kb8 35. Qe8+ Kb7 36. Qd7+ Kb8 $11) 31... Bb7 {[%emt 0:00:04]} 32. Qa5+ {[%emt 0:01:29]} Kb8 {[%emt 0:00:17]} 33. Qd8+ {[%emt 0:00:16]} (33. Nd3 $142 Qc3+ 34. Ke2) 33... Ka7 {[%emt 0:00:02]} 34. Qa5+ {[%emt 0:01:20]} ({Weaker is} 34. Bxg8 Qc3+ 35. Kc1 b3 $19) (34. Ne2 $142 Bxe5 35. Qa5+ Kb8 {[#]} 36. Rb1 $3 {[%mdl 512]}) 34... Kb8 {[%emt 0:00:01]} 35. Qd8+ {[%emt 0:00:51]} Ka7 {[%emt 0:00:01]} 36. Qa5+ $2 {[%emt 0:02:09] Weighted Error Value: White=0.72/Black=0.55} (36. Bxg8 $2 {perishes.} Qc3+ 37. Kc1 b3 $17) (36. Nd3 $18 Qc3+ 37. Ke2) 1/2-1/2

[Event "ITT 1st Parada Jamundi 2022"]
[Site "Jamundi Valle"]
[Date "2022.12.07"]
[Round "3.7"]
[White "Aguero Jimenez, Luis Lazaro"]
[Black "Malka, Samuel"]
[Result "1/2-1/2"]
[ECO "B07"]
[WhiteElo "2465"]
[BlackElo "2265"]
[Annotator "TA"]
[PlyCount "78"]
[EventDate "2022.12.05"]
[EventType "swiss"]
[EventCountry "COL"]
[SourceTitle "playchess.com"]
[Source "ChessBase"]
[SourceQuality "1"]
[TimeControl "5400+30"]

{[%evp 14,78,31,5,15,15,11,5,6,-59,-31,-31,-41,-28,-22,-49,-16,-56,0,0,0,-38,-50,-78,0,-12,4,0,0,0,0,0,0,0,14,0,80,63,80,81,136,134,136,26,26,0,0,0,0,0,25,5,7,0,0,0,0,0,0,0,0,0,0,0,0,0,0]} 1. Nf3 {[%emt 1:31:00]} Nf6 {[%emt 0:05:36]} 2. g3 {[%emt 0:00:00]} g6 {[%emt 0:00:41]} 3. Bg2 {[%emt 0:00:00]} Bg7 {[%emt 0:00:03]} 4. O-O {[%emt 0:00:00]} O-O {[%emt 0:00:03]} 5. d4 {[%emt 0:00:00]} d6 {[%emt 0:00:27]} 6. Nc3 {[%emt 0:00:00]} Nbd7 {[%emt 0:00:13]} 7. e4 {[%emt 0:00:00]} e5 {[%emt 0:00:35]} 8. h3 {[%emt 0:00:00]} b6 {[%emt 0:03:00] 8...Re8 gains popularity. B07: Pirc Defence: Miscellaneous Systems.} 9. Re1 {[%emt 0:00:00]} Bb7 {[%emt 0:02:32]} 10. a4 {[%emt 0:00:00]} a5 {[%emt 0:01:53] [#]} 11. Nd5 $146 {[%emt 0:00:00]} (11. d5 $11) ({Predecessor:} 11. dxe5 dxe5 12. b3 Re8 13. Ba3 Bf8 14. Bxf8 Kxf8 15. Qd2 Kg7 16. Rad1 Qe7 17. Nd5 Bxd5 18. exd5 {1-0 (84) Matlakov,M (2671)-Ibarra Jerez,J (2570) Chess.com INT 2022}) 11... Nxd5 {[%emt 0:07:18]} (11... Nxe4 {keeps more tension.} 12. dxe5 Ndc5 13. exd6 Qxd6 14. c4 c6) 12. exd5 {[%emt 0:00:00]} h6 {[%emt 0:08:37]} (12... Bxd5 13. dxe5 Bb7 14. exd6 $14) 13. dxe5 {[%emt 0:00:00]} dxe5 {[%emt 0:01:31]} 14. Be3 {[%emt 0:00:00]} Kh7 {[%emt 0:02:43]} 15. d6 {[%emt 0:00:00][%cal Of3e5]} c6 {[%emt 0:13:14]} (15... Qc8 $15) 16. Nd2 {[%emt 0:00:00]} f5 {[%emt 0:03:03] Threatens to win with ...f4.} 17. Nc4 {[%emt 0:00:00]} e4 {[%emt 0:03:28]} 18. Qd2 {[%emt 0:00:00]} c5 {[%emt 0:08:45] Prevents Bd4.} (18... Ba6 $17 19. Bf1 Ra7) 19. h4 $11 {[%emt 0:00:00]} Qf6 {[%emt 0:04:42]} (19... Ba6 $5 {[%cal Ra6c4]} 20. Bf1 Bxc4 21. Bxc4 Ne5 $11) 20. Red1 {[%emt 0:00:00]} Qe6 {[%emt 0:07:49]} 21. Bf1 {[%emt 0:00:00]} Ne5 {[%emt 0:02:08]} 22. Nxe5 {[%emt 0:00:00]} (22. Nxb6 $2 Nf3+ 23. Kh1 Nxd2 $19) 22... Bxe5 {[%emt 0:00:12]} 23. Bf4 {[%emt 0:00:00]} Rad8 {[%emt 0:10:57]} 24. Bb5 {[%emt 0:00:00]} (24. Bxh6 Rxd6 25. Qg5 Rf6 26. Rxd6 Qxd6 $15) 24... g5 {[%emt 0:01:45] Inhibits d7.} (24... Rxd6 $2 25. Qxd6 Bxd6 26. Rxd6 $18) (24... Bd4 $11) 25. hxg5 $16 {[%emt 0:00:44]} ({Of course not} 25. Bxe5 Qxe5 26. Qc3 (26. hxg5 f4 $15) 26... Qxc3 27. bxc3 e3 $11) 25... hxg5 {[%emt 0:00:04]} (25... Rxd6 $2 26. Qxd6 Bxd6 27. Rxd6 $18) 26. Bxe5 {[%emt 0:00:11]} ({Reject} 26. Bxg5 Rxd6 27. Qe2 Bd5 $11) 26... Qxe5 {[%emt 0:00:50]} ({Black should play} 26... f4) 27. Qxg5 {[%emt 0:00:18] [#] Hoping for Kg2.} Rxd6 {[%emt 0:02:34]} 28. Rxd6 {[%emt 0:03:37]} (28. Qh5+ $16 Kg7 29. Rxd6 Qxd6 30. Rd1) 28... Qxd6 $11 {[%emt 0:00:07]} 29. Qh5+ {[%emt 0:00:18]} (29. Kf1 {looks sharper.} Qh6 30. Qe7+ Qg7 31. Qd6) 29... Qh6 {[%emt 0:00:50]} 30. Qxh6+ {[%emt 0:00:04]} Kxh6 {[%emt 0:00:05][%mdl 4096] Endgame KRB-KRB} 31. Rd1 {[%emt 0:00:03] Inhibits Rd8.} Rf6 {[%emt 0:02:23] Prevents Rd6.} 32. Kf1 {[%emt 0:00:15]} (32. Rd7 $5 {[%cal Rd7b7]} Bc6 33. Bxc6 Rxc6 34. Kf1 $11) 32... Kg5 {[%emt 0:01:23][%cal Bh6g5,Bg5g4,Bg4f4,Bf4e5][%mdl 32] The position is equal.} 33. Ke2 {[%emt 0:00:18]} f4 {[%emt 0:01:11]} 34. Rd7 {[%emt 0:01:22]} Bc8 {[%emt 0:02:00]} 35. Rd5+ {[%emt 0:00:17]} Kg4 {[%emt 0:00:59]} 36. Bd7+ {[%emt 0:02:54]} Bxd7 {[%emt 0:00:15]} 37. Rxd7 {[%emt 0:00:01]} fxg3 {[%emt 0:00:53]} 38. Rg7+ {[%emt 0:00:04]} Kf4 {[%emt 0:00:15] aiming for ...gxf2.} 39. fxg3+ {[%emt 0:00:43]} Ke5 {[%emt 0:00:10] Weighted Error Value: White=0.17 (very precise) /Black=0.17 (very precise)} 1/2-1/2